bitfinex/quotes_SOLUSD_20260203
["timestamp","ask_amount","ask_price","bid_price","bid_amount"]
[1770086084732,9.34056895,103.41,103.38,13.803874]
[1770086085949,9.34056895,103.39,103.37,13.80484937]
[1770086087234,9.34056895,103.4,103.37,13.80484937]
[1770086087532,12.80112254,103.41,103.37,13.80484937]
[1770086088033,9.34056895,103.4,103.37,13.80484937]
[1770086091259,3.46055359,103.41,103.38,4.09843503]
[1770086091260,9.34056895,103.41,103.38,4.09843503]
[1770086091439,9.34056895,103.43,103.39,4.09843503]
[1770086091833,12.8884676,103.43,103.39,4.09843503]
[1770086093743,9.34056895,103.42,103.39,13.76981868]
[1770086093949,12.9121532,103.42,103.39,13.76981868]
[1770086094445,7.49718111,103.42,103.39,13.76981868]
[1770086094644,3.57158425,103.4,103.38,9.67271467]
[1770086094847,3.92559686,103.39,103.37,13.77199811]
[1770086095553,7.49718111,103.4,103.37,13.77199811]
[1770086096053,3.92559686,103.41,103.38,13.77127157]
[1770086096257,3.92559686,103.42,103.38,13.77127157]
[1770086096556,3.92559686,103.41,103.38,13.77127157]
[1770086098455,3.92559686,103.41,103.38,37.95389877]
[1770086099654,3.92559686,103.41,103.39,4.09843503]
[1770086099855,7.52032573,103.42,103.39,4.09843503]
[1770086100538,7.52032573,103.42,103.39,13.769636]
[1770086101454,3.65030403,103.46,103.41,4.09843503]
[1770086101632,3.92559686,103.44,103.41,4.09843503]
[1770086101831,3.65030403,103.45,103.41,4.09843503]
[1770086101832,3.92559686,103.46,103.42,4.09843503]
[1770086102037,3.92559686,103.47,103.43,4.09843503]
[1770086102238,3.92559686,103.48,103.44,4.09843503]
[1770086102434,7.58663587,103.47,103.44,4.09843503]
[1770086102752,7.58663587,103.46,103.44,9.6670044]
[1770086102950,3.92559686,103.46,103.44,9.6670044]
[1770086103952,7.59724755,103.47,103.45,9.66650257]
[1770086104350,3.92559686,103.46,103.44,13.76532144]
[1770086104660,3.92559686,103.46,103.43,4.09843503]
[1770086106266,3.92559686,103.46,103.43,13.76603857]
[1770086106465,7.59724755,103.47,103.44,4.09843503]
[1770086106655,7.59724755,103.47,103.43,37.93697543]
[1770086107252,3.92559686,103.46,103.43,37.93697543]
[1770086107988,13.36916358,103.49,103.44,4.09843503]
[1770086108293,7.63155796,103.49,103.46,9.66557123]
[1770086108449,7.63155796,103.49,103.46,13.76400626]
[1770086108652,3.92559686,103.51,103.47,4.09843503]
[1770086108881,7.63155796,103.51,103.47,4.09843503]
[1770086109167,7.63155796,103.52,103.48,4.09843503]
[1770086110381,3.92559686,103.51,103.48,13.76152073]
[1770086110873,7.63155796,103.52,103.48,13.76152073]
[1770086111049,3.92559686,103.51,103.48,13.76152073]
[1770086111959,7.63155796,103.52,103.48,13.76152073]
[1770086112678,3.92559686,103.51,103.48,13.76152073]
[1770086112851,7.63155796,103.51,103.48,13.76152073]
[1770086113970,0.2,103.54,103.5,4.09843503]
[1770086114158,0.2,103.54,103.51,4.09843503]
[1770086115191,7.83155796,103.54,103.5,4.09843503]
[1770086116267,7.63155796,103.52,103.49,13.76029198]
[1770086116768,7.63155796,103.52,103.5,9.6618347]
[1770086116769,3.92559686,103.52,103.5,9.6618347]
[1770086117075,7.63155796,103.52,103.5,9.6618347]
[1770086117370,4.12559686,103.54,103.51,4.09843503]
[1770086117575,0.2,103.54,103.52,4.09843503]
[1770086117769,7.83155796,103.56,103.52,4.09843503]
[1770086118352,7.83155796,103.56,103.53,9.65903602]
[1770086118867,7.63155796,103.55,103.53,9.65903602]
[1770086121278,3.92559686,103.55,103.53,9.65903602]
[1770086121472,7.83155796,103.56,103.53,13.86667805]
[1770086121687,3.9059611,103.56,103.53,13.86667805]
[1770086121863,7.83155796,103.56,103.53,13.86667805]
[1770086122384,7.82041093,103.56,103.53,13.86667805]
[1770086122761,3.91444983,103.55,103.53,13.86667805]
[1770086123888,7.82041093,103.56,103.53,13.86667805]
[1770086124181,4.11444983,103.56,103.53,13.86667805]
[1770086124499,0.2,103.56,103.53,13.86667805]
[1770086125166,4.11444983,103.56,103.53,13.86667805]
[1770086125482,3.91444983,103.55,103.53,13.86667805]
[1770086125672,8.3123428,103.54,103.49,4.19877297]
[1770086126579,8.3123428,103.54,103.5,3.91444983]
[1770086126879,8.3123428,103.54,103.5,33.81612985]
[1770086127082,8.3123428,103.54,103.5,37.73057968]
[1770086127780,8.3123428,103.55,103.51,4.20764203]
[1770086128980,8.3123428,103.55,103.52,13.86761111]
[1770086130081,0.2,103.56,103.53,4.20764203]
[1770086130466,4.11444983,103.56,103.53,4.20764203]
[1770086131365,0.2,103.56,103.53,4.20764203]
[1770086131566,4.11444983,103.56,103.53,4.20764203]
[1770086131985,8.5123428,103.56,103.53,4.20764203]
[1770086132580,18.16861428,103.56,103.53,4.20764203]
[1770086133392,0.2,103.56,103.53,13.86600522]
[1770086134091,4.59789297,103.56,103.53,13.86600522]
[1770086135694,0.2,103.56,103.54,4.20764203]
[1770086137191,0.2,103.57,103.54,9.65791025]
[1770086137389,1e-08,103.57,103.56,4.20764203]
[1770086138278,8.5123428,103.61,103.57,4.20764203]
[1770086138770,18.16405703,103.61,103.57,13.86211747]
[1770086138975,3.91444983,103.6,103.57,13.86211747]
[1770086139797,8.3123428,103.58,103.55,13.86396692]
[1770086140101,3.91444983,103.57,103.55,13.86396692]
[1770086140682,4.39789297,103.58,103.55,13.86396692]
[1770086140683,8.3123428,103.58,103.55,13.86396692]
[1770086141472,3.91444983,103.58,103.55,13.86396692]
[1770086142398,9.31651348,103.58,103.55,13.86396692]
[1770086142594,9.31651348,103.57,103.55,4.20764203]
[1770086142794,9.31651348,103.58,103.54,4.20764203]
[1770086143795,9.31651348,103.57,103.55,9.65717044]
[1770086143996,9.31651348,103.58,103.55,13.86481247]
[1770086145077,13.71440645,103.58,103.55,9.65717044]
[1770086145477,13.71440645,103.58,103.55,13.86481247]
[1770086145675,0.2,103.61,103.56,4.49196517]
[1770086145978,0.2,103.61,103.59,4.20764203]
[1770086146185,9.51651348,103.61,103.58,13.86128455]
[1770086146700,9.51651348,103.61,103.58,9.65364252]
[1770086147796,13.71440645,103.59,103.55,24.14073403]
[1770086147986,4.39789297,103.58,103.55,38.0055465]
[1770086148575,4.39789297,103.56,103.54,33.80259355]
[1770086148774,4.39789297,103.56,103.54,9.6575746]
[1770086149180,13.71440645,103.56,103.54,9.65803518]
[1770086150497,4.39789297,103.56,103.54,9.65803518]
[1770086156303,13.69176353,103.59,103.55,4.08363178]
[1770086156607,4.37525005,103.58,103.55,4.08363178]
[1770086156906,13.69176353,103.58,103.55,4.08363178]
[1770086157721,9.31651348,103.56,103.51,30.92363178]
[1770086157896,9.31651348,103.54,103.51,30.92363178]
[1770086158099,13.69176353,103.55,103.51,30.92363178]
[1770086158491,13.69176353,103.55,103.52,9.65996908]
[1770086158691,13.69176353,103.55,103.52,13.74360086]
[1770086159804,4.37525005,103.53,103.51,36.5005308]
[1770086160000,9.31651348,103.54,103.51,36.5005308]
[1770086160205,13.69176353,103.54,103.51,40.58416258]
[1770086160614,4.37525005,103.54,103.51,40.58416258]
[1770086160904,13.69176353,103.54,103.51,40.58416258]
[1770086161317,13.69176353,103.55,103.51,40.58416258]
[1770086161527,13.69176353,103.55,103.52,4.08363178]
[1770086162188,13.69176353,103.54,103.51,64.7364184]
[1770086162391,8.29262999,103.52,103.5,9.66127095]
[1770086162694,8.29262999,103.52,103.49,4.08363178]
[1770086162899,8.29262999,103.53,103.5,4.08363178]
[1770086163412,8.29262999,103.53,103.51,9.66081828]
[1770086164716,8.29262999,103.53,103.5,13.7449491]
[1770086165016,4.37525005,103.53,103.5,13.7449491]
[1770086165508,8.29262999,103.54,103.51,4.08363178]
[1770086165713,4.37525005,103.53,103.5,37.89953847]
[1770086166098,8.29262999,103.54,103.51,4.08363178]
[1770086166303,8.29262999,103.55,103.51,4.08363178]
[1770086166616,8.29262999,103.54,103.51,13.74427393]
[1770086167731,8.29262999,103.53,103.5,37.89952366]
[1770086167913,8.29262999,103.53,103.51,9.66085572]
[1770086169223,3.91737994,103.53,103.51,4.08363178]
[1770086172423,3.91737994,103.52,103.5,13.74529562]
[1770086172739,3.91737994,103.52,103.49,13.74586105]
[1770086172740,3.91737994,103.51,103.49,13.74586105]
[1770086172908,8.29262999,103.51,103.49,9.66222927]
[1770086173106,3.91737994,103.51,103.49,9.66222927]
[1770086173310,3.91737994,103.51,103.49,13.74586105]
[1770086173926,3.91737994,103.5,103.48,13.74689087]
[1770086174124,4.37525005,103.48,103.44,28.25031703]
[1770086174429,8.29262999,103.48,103.45,13.74972005]
[1770086174805,8.29262999,103.47,103.44,13.75056881]
[1770086175213,3.91737994,103.48,103.45,4.08363178]
[1770086175420,8.29262999,103.49,103.45,4.08363178]
[1770086176218,8.29262999,103.49,103.46,9.66557123]
[1770086176418,3.91737994,103.48,103.45,13.749677]
[1770086177129,8.29262999,103.48,103.45,13.749677]
[1770086178917,3.91737994,103.48,103.45,13.749677]
[1770086180434,8.15829562,103.48,103.45,13.749677]
[1770086180635,3.91737994,103.47,103.45,4.08363178]
[1770086180830,3.91737994,103.47,103.45,13.74999566]
[1770086181220,8.15829562,103.48,103.45,13.74999566]
[1770086181425,8.15829562,103.48,103.45,13.78840306]
[1770086184546,8.16157078,103.48,103.45,13.78840306]
[1770086185040,8.16157078,103.48,103.42,55.03215829]
[1770086185041,3.9206551,103.47,103.42,55.03215829]
[1770086185232,8.16157078,103.45,103.42,4.22203918]
[1770086185425,8.16157078,103.45,103.42,13.89093282]
[1770086186041,3.9206551,103.44,103.42,13.89093282]
[1770086186341,3.9206551,103.44,103.42,13.89131583]
[1770086187121,8.16157078,103.43,103.41,9.66978191]
[1770086187326,8.16157078,103.43,103.4,13.89271702]
[1770086187520,3.9206551,103.42,103.4,13.89271702]
[1770086189345,3.9206551,103.41,103.37,30.96203918]
[1770086189547,3.9206551,103.39,103.37,4.12203918]
[1770086190645,3.9206551,103.39,103.37,13.79537278]
[1770086190842,8.16157078,103.4,103.37,13.79537278]
[1770086192225,8.16157078,103.4,103.35,4.12203918]
[1770086192226,8.16157078,103.38,103.35,4.12203918]
[1770086192432,3.9206551,103.37,103.35,13.79739455]
[1770086193331,3.9206551,103.38,103.36,4.12203918]
[1770086193532,3.9206551,103.38,103.35,9.67535537]
[1770086193533,8.16157078,103.38,103.35,13.79739455]
[1770086193733,8.16157078,103.39,103.36,4.12203918]
[1770086195338,8.16157078,103.39,103.36,13.79648066]
[1770086197153,3.9206551,103.39,103.37,4.12203918]
[1770086197338,8.16157078,103.4,103.37,4.12203918]
[1770086197652,3.9206551,103.39,103.37,4.12203918]
[1770086197835,8.16157078,103.39,103.36,37.98378716]
[1770086198155,8.16157078,103.37,103.35,9.6753555]
[1770086198357,3.9206551,103.37,103.35,9.6753555]
[1770086199251,3.9206551,103.37,103.35,4.12203918]
[1770086200335,8.16157078,103.38,103.35,4.12203918]
[1770086200535,8.16157078,103.37,103.34,4.22203918]
[1770086200736,3.9206551,103.36,103.34,4.22203918]
[1770086201841,3.9206551,103.36,103.34,13.89850949]
[1770086202248,8.16157078,103.36,103.34,0.1]
[1770086202762,8.16157078,103.36,103.34,9.77664569]
[1770086203056,4.24091568,103.34,103.33,0.1]
[1770086203254,8.16157078,103.34,103.32,0.1]
[1770086203461,9.67545309,103.36,103.29,9.6810651]
[1770086203462,4.24091568,103.32,103.29,9.6810651]
[1770086203751,3.9206551,103.3,103.28,13.80400127]
[1770086203969,3.9206551,103.3,103.28,9.68196209]
[1770086204535,3.9206551,103.3,103.28,13.80400127]
[1770086204753,3.9206551,103.32,103.29,4.12203918]
[1770086204938,3.9206551,103.31,103.28,13.80400127]
[1770086205653,3.9206551,103.3,103.28,9.68196209]
[1770086205852,3.9206551,103.31,103.28,13.80400127]
[1770086206450,3.9206551,103.32,103.28,38.01004309]
[1770086206652,3.9206551,103.32,103.29,4.12203918]
[1770086206854,3.61668911,103.32,103.29,4.12203918]
[1770086208047,3.61668911,103.33,103.3,4.12203918]
[1770086208840,7.53734421,103.34,103.3,8.04269428]
[1770086209039,7.53734421,103.34,103.31,4.12203918]
[1770086209257,7.53734421,103.34,103.3,4.12203918]
[1770086209461,3.9206551,103.33,103.3,4.12203918]
[1770086209965,3.9206551,103.34,103.31,13.80164425]
[1770086210145,17.21369147,103.35,103.31,13.95110748]
[1770086210346,7.53734421,103.34,103.31,13.95110748]
[1770086210535,3.9206551,103.36,103.32,4.27150241]
[1770086210742,103.3,103.43,103.34,4.27150241]
[1770086210743,7.53734421,103.37,103.34,4.27150241]
[1770086211046,3.61668911,103.37,103.34,4.27150241]
[1770086211764,24.1794335,103.4,103.35,4.27150241]
[1770086211765,3.61668911,103.4,103.35,4.27150241]
[1770086211941,3.61668911,103.4,103.36,4.27150241]
[1770086211942,17.20877557,103.4,103.36,4.27150241]
[1770086212142,7.53734421,103.39,103.36,13.94637536]
[1770086212643,24.17602204,103.41,103.37,4.27150241]
[1770086212644,3.9206551,103.41,103.37,4.27150241]
[1770086212860,7.53734421,103.41,103.37,4.27150241]
[1770086213958,7.53734421,103.39,103.36,13.94596642]
[1770086214142,7.53734421,103.39,103.36,9.67446401]
[1770086214342,12.96908619,103.39,103.35,13.94689195]
[1770086215069,3.61668911,103.39,103.37,9.67396927]
[1770086216261,12.96908619,103.39,103.36,13.94598978]
[1770086216563,3.61668911,103.4,103.37,4.27150241]
[1770086217648,3.61668911,103.4,103.37,13.62389949]
[1770086217854,12.96908619,103.4,103.36,47.48569336]
[1770086219068,12.96908619,103.39,103.36,13.94598978]
[1770086219574,12.96908619,103.39,103.36,4.27150241]
[1770086219755,12.96908619,103.39,103.35,9.67534834]
[1770086219756,12.96908619,103.38,103.35,9.67534834]
[1770086220448,12.96908619,103.38,103.34,13.94799279]
[1770086220663,22.64287622,103.38,103.34,13.94799279]
[1770086220873,12.96908619,103.36,103.33,9.67728449]
[1770086221377,12.96908619,103.36,103.33,13.9487869]
[1770086221873,33.85641723,103.38,103.34,13.94828341]
[1770086221874,46.82550342,103.38,103.34,13.94828341]
[1770086222051,22.64287622,103.38,103.34,13.94828341]
[1770086222245,24.18006646,103.4,103.36,4.27150241]
[1770086222246,43.24031681,103.4,103.36,4.27150241]
[1770086222447,0.03616689,103.4,103.36,13.62389949]
[1770086222751,0.03616689,103.4,103.36,23.29817267]
[1770086223153,0.03616689,103.4,103.36,13.94577559]
[1770086223154,3.61668911,103.39,103.36,13.94577559]
[1770086223549,3.61668911,103.39,103.37,9.67398465]
[1770086223756,3.61668911,103.4,103.37,23.29788414]
[1770086224572,12.96908619,103.4,103.37,4.27150241]
[1770086225069,22.64046878,103.4,103.37,4.27150241]
[1770086225279,19.02377967,103.4,103.36,13.94592039]
[1770086225476,3.61668911,103.39,103.36,13.94592039]
[1770086225680,3.61668911,103.39,103.36,4.27150241]
[1770086226473,12.96908619,103.39,103.36,4.27150241]
[1770086227677,3.61668911,103.39,103.36,13.94624438]
[1770086230371,3.61668911,103.39,103.36,23.29864146]
[1770086230573,3.61668911,103.4,103.37,4.27150241]
[1770086230773,19.02303142,103.41,103.38,13.62389949]
[1770086230774,3.61668911,103.41,103.38,13.62389949]
[1770086231166,3.61668911,103.41,103.38,4.27150241]
[1770086231668,3.61668911,103.41,103.38,13.62389949]
[1770086232366,3.61668911,103.41,103.38,23.29651366]
[1770086232566,22.63881883,103.42,103.38,23.29651366]
[1770086232788,3.61668911,103.41,103.38,13.94411658]
[1770086233088,19.02212972,103.42,103.39,4.27150241]
[1770086233089,3.61668911,103.42,103.39,4.27150241]
[1770086233675,12.96908619,103.42,103.39,4.27150241]
[1770086233978,12.96908619,103.41,103.38,4.27150241]
[1770086234681,22.63964907,103.41,103.37,23.29751036]
[1770086235179,3.61668911,103.4,103.37,13.94511328]
[1770086235476,12.96908619,103.4,103.37,4.27150241]
[1770086235683,12.96908619,103.4,103.36,23.29832091]
[1770086236780,3.61668911,103.39,103.36,23.29832091]
[1770086237183,22.6408085,103.4,103.36,23.29832091]
[1770086237364,22.6408085,103.4,103.37,4.27150241]
[1770086237565,13.28841142,103.4,103.37,4.27150241]
[1770086237886,3.61668911,103.38,103.35,13.94693319]
[1770086238079,3.61668911,103.38,103.34,50.18021524]
[1770086238382,3.61668911,103.38,103.34,13.94781816]
[1770086238383,3.61668911,103.37,103.34,13.94781816]
[1770086238585,3.61668911,103.37,103.35,9.67584249]
[1770086238763,9.35239708,103.38,103.35,9.67584027]
[1770086238963,22.64238348,103.38,103.34,23.30015853]
[1770086240079,9.67253899,103.39,103.36,13.42361346]
[1770086240290,13.2892281,103.39,103.36,13.42361346]
[1770086240682,13.2892281,103.39,103.32,26.88]
[1770086240683,3.58052221,103.36,103.33,13.74855827]
[1770086240875,12.93291929,103.36,103.33,13.74855827]
[1770086241275,22.60638589,103.38,103.34,4.07121638]
[1770086241478,13.2532268,103.39,103.36,4.07121638]
[1770086243685,22.60562388,103.39,103.36,4.07121638]
[1770086244188,3.58052221,103.36,103.31,9.67930214]
[1770086244369,76.81672482,103.39,103.31,13.75051852]
[1770086244370,9.36065305,103.34,103.31,13.75051852]
[1770086245691,13.25679256,103.35,103.31,13.75051852]
[1770086245692,22.61744561,103.35,103.31,13.75051852]
[1770086246792,9.36065305,103.34,103.31,13.75051852]
[1770086247082,9.36065305,103.34,103.32,4.07121638]
[1770086247678,22.61744561,103.35,103.32,4.07121638]
[1770086248084,9.36065305,103.34,103.32,4.07121638]
[1770086251196,9.36065305,103.33,103.3,13.75125357]
[1770086251694,9.36065305,103.33,103.31,4.07121638]
[1770086252674,9.36065305,103.32,103.29,13.75246272]
[1770086253295,9.36065305,103.32,103.3,4.07121638]
[1770086254198,19.0378476,103.34,103.31,4.07121638]
[1770086255374,3.58052221,103.33,103.3,13.75155135]
[1770086255681,19.0378476,103.34,103.31,4.07121638]
[1770086256277,22.61747879,103.35,103.32,4.07121638]
[1770086256471,12.94117526,103.34,103.31,13.75045507]
[1770086256680,9.36065305,103.34,103.31,13.75045507]
[1770086257296,9.36065305,103.34,103.31,4.07121638]
[1770086257897,12.94117526,103.34,103.3,4.07121638]
[1770086258083,9.36065305,103.33,103.3,4.07121638]
[1770086258282,13.25788679,103.34,103.3,13.75115864]
[1770086258482,9.36065305,103.34,103.32,4.07121638]
[1770086258788,9.36065305,103.34,103.31,9.67960453]
[1770086258789,22.61806627,103.34,103.31,13.75082091]
[1770086260202,9.36065305,103.33,103.31,4.07121638]
[1770086260585,9.36065305,103.33,103.3,4.07121638]
[1770086260785,9.36065305,103.32,103.3,4.07121638]
[1770086261397,12.94117526,103.33,103.3,13.75174425]
[1770086262003,9.36065305,103.32,103.3,4.07121638]
[1770086262700,22.61911621,103.33,103.3,4.07121638]
[1770086264411,17.19086943,103.33,103.3,4.07121638]
[1770086265412,17.19086943,103.33,103.3,13.75170699]
[1770086269407,3.93240627,103.32,103.3,4.07121638]
[1770086269607,3.93240627,103.32,103.29,13.75201808]
[1770086269805,3.93240627,103.32,103.3,4.07121638]
[1770086272113,17.19067691,103.33,103.3,13.75172899]
[1770086273015,3.93240627,103.33,103.31,4.36929817]
[1770086273315,17.18991851,103.34,103.31,4.36929817]
[1770086273813,3.93240627,103.33,103.31,4.36929817]
[1770086274193,3.93240627,103.33,103.31,14.04887625]
[1770086274811,3.93240627,103.33,103.31,4.36929817]
[1770086275519,7.51292848,103.34,103.31,14.04888813]
[1770086275716,3.93240627,103.34,103.32,4.36929817]
[1770086276096,7.51292848,103.34,103.31,14.04888813]
[1770086278018,7.51292848,103.33,103.3,14.04964695]
[1770086278219,3.93240627,103.32,103.3,14.04964695]
[1770086278807,3.93240627,103.32,103.3,4.36929817]
[1770086280215,3.93240627,103.32,103.3,14.04979247]
[1770086281020,13.60922253,103.34,103.31,4.36929817]
[1770086281630,17.18974474,103.34,103.31,4.36929817]
[1770086282130,24.18985946,103.35,103.29,28.1354164]
[1770086282131,3.93240627,103.32,103.29,14.05037054]
[1770086282536,3.93240627,103.32,103.3,4.36929817]
[1770086282703,3.58052221,103.3,103.26,31.26929817]
[1770086282904,3.93240627,103.29,103.27,14.05221371]
[1770086283103,3.58052221,103.27,103.24,38.26792411]
[1770086283314,3.93240627,103.26,103.24,14.05464088]
[1770086283631,3.58052221,103.27,103.24,14.05464088]
[1770086283805,3.93240627,103.26,103.24,4.36929817]
[1770086284006,7.51292848,103.26,103.23,14.15599724]
[1770086284308,3.93240627,103.25,103.23,14.15599724]
[1770086284510,3.93240627,103.25,103.23,0.1]
[1770086284815,7.51292848,103.25,103.23,0.1]
[1770086286715,3.93240627,103.25,103.23,4.46929817]
[1770086286916,7.51292848,103.24,103.21,14.05785698]
[1770086287117,3.93240627,103.23,103.21,14.05785698]
[1770086287318,3.93240627,103.24,103.22,4.36929817]
[1770086287628,3.93240627,103.24,103.21,14.05785698]
[1770086287811,3.93240627,103.23,103.21,14.05785698]
[1770086288010,3.93240627,103.23,103.21,4.36929817]
[1770086288424,12.95998983,103.24,103.21,14.05818722]
[1770086289228,9.37946762,103.25,103.22,4.36929817]
[1770086289607,9.37946762,103.23,103.21,14.05818722]
[1770086289807,9.37946762,103.23,103.21,4.36929817]
[1770086290018,9.37946762,103.22,103.2,14.15872671]
[1770086290333,9.37946762,103.22,103.2,4.46929817]
[1770086290526,9.37946762,103.22,103.2,0.1]
[1770086290527,12.95998983,103.22,103.2,0.1]
[1770086290719,9.37946762,103.21,103.2,0.1]
[1770086292017,12.95998983,103.23,103.2,4.46929817]
[1770086293639,12.95998983,103.23,103.2,14.15922005]
[1770086293937,9.686963,103.24,103.21,4.36929817]
[1770086293938,9.37946762,103.24,103.21,4.36929817]
[1770086294153,12.95998983,103.23,103.2,14.15922005]
[1770086295328,12.95998983,103.25,103.21,4.36929817]
[1770086295730,9.37946762,103.24,103.21,4.36929817]
[1770086296044,12.95998983,103.25,103.21,4.36929817]
[1770086296721,12.95998983,103.24,103.21,4.36929817]
[1770086296916,9.37946762,103.24,103.21,4.36929817]
[1770086297122,12.95998983,103.25,103.21,4.36929817]
[1770086298234,3.58052221,103.24,103.22,9.68804495]
[1770086298434,12.95998983,103.25,103.22,14.05734312]
[1770086298831,9.37946762,103.26,103.23,4.36929817]
[1770086299224,12.95998983,103.27,103.23,4.36929817]
[1770086299924,12.95998983,103.27,103.24,4.36929817]
[1770086300423,3.58052221,103.26,103.22,47.59759033]
[1770086300624,9.37946762,103.24,103.22,13.99801033]
[1770086301443,9.37946762,103.24,103.22,4.30996538]
[1770086301644,9.37946762,103.23,103.21,13.9985097]
[1770086303134,3.58052221,103.24,103.21,13.9985097]
[1770086303135,12.95998983,103.24,103.21,13.9985097]
[1770086304134,3.58052221,103.24,103.21,38.22096876]
[1770086304447,9.37946762,103.23,103.21,13.9985097]
[1770086305038,9.37946762,103.24,103.22,4.30996538]
[1770086305228,3.58052221,103.25,103.22,4.30996538]
[1770086305435,12.95998983,103.25,103.22,4.30996538]
[1770086306452,12.95736796,103.25,103.22,4.30996538]
[1770086306953,12.95736796,103.25,103.23,9.68710646]
[1770086307254,12.95736796,103.25,103.22,13.997534]
[1770086309134,3.58052221,103.25,103.22,13.997534]
[1770086310255,12.95736796,103.25,103.22,13.997534]
[1770086310451,3.58052221,103.23,103.21,9.68844579]
[1770086311343,12.95736796,103.23,103.21,9.68844579]
[1770086312561,12.95736796,103.23,103.2,14.09937665]
[1770086312960,3.58052221,103.23,103.2,38.32418285]
[1770086313157,12.95736796,103.24,103.21,4.30996538]
[1770086313358,3.58052221,103.24,103.22,9.68804495]
[1770086314050,12.95736796,103.24,103.21,13.99855729]
[1770086314254,3.58052221,103.21,103.2,0.1]
[1770086314446,3.54471698,103.2,103.19,0.06419477]
[1770086314763,12.88611556,103.21,103.19,9.75498313]
[1770086314957,12.88611556,103.21,103.19,0.06419477]
[1770086316046,22.57359567,103.23,103.19,4.37416015]
[1770086316249,22.57326767,103.23,103.19,4.37416015]
[1770086316655,12.88611556,103.23,103.19,4.37416015]
[1770086316964,9.37684575,103.22,103.19,4.37416015]
[1770086317165,12.88611556,103.22,103.19,4.37416015]
[1770086317567,12.88611556,103.22,103.19,14.06418717]
[1770086317768,9.37684575,103.22,103.19,14.06418717]
[1770086318161,3.50926981,103.23,103.2,4.30996538]
[1770086318866,12.88611556,103.24,103.2,4.30996538]
[1770086319264,9.37684575,103.23,103.2,4.30996538]
[1770086319468,22.57235925,103.24,103.2,4.30996538]
[1770086319645,22.57235925,103.24,103.19,43.35822133]
[1770086319646,12.88611556,103.24,103.21,13.998949]
[1770086320569,3.50926981,103.21,103.19,9.75495531]
[1770086320767,12.88611556,103.21,103.19,0.06419477]
[1770086321073,9.37684575,103.2,103.19,0.06419477]
[1770086321261,9.37684575,103.21,103.19,14.06487772]
[1770086321470,9.37684575,103.23,103.21,4.30996538]
[1770086321672,13.19592746,103.24,103.21,4.30996538]
[1770086321673,22.57243978,103.24,103.21,4.30996538]
[1770086323174,12.88611556,103.24,103.21,13.99874977]
[1770086323562,22.57242068,103.24,103.21,4.30996538]
[1770086323757,9.37684575,103.23,103.21,4.30996538]
[1770086324068,9.37684575,103.27,103.23,4.30996538]
[1770086325457,22.56894747,103.28,103.24,4.30996538]
[1770086326063,9.37684575,103.25,103.23,9.68659153]
[1770086326571,12.88611556,103.26,103.23,13.99655691]
[1770086327057,12.88611556,103.26,103.24,9.68615205]
[1770086327380,9.37684575,103.26,103.24,9.68615205]
[1770086327977,12.88611556,103.26,103.23,13.99676127]
[1770086328677,9.37684575,103.25,103.23,4.30996538]
[1770086328978,9.37684575,103.25,103.22,9.68723631]
[1770086328979,9.37684575,103.24,103.22,4.30996538]
[1770086330385,3.93856854,103.25,103.22,13.99793375]
[1770086330557,17.13225616,103.26,103.23,4.2479154]
[1770086333279,3.93856854,103.25,103.23,4.2479154]
[1770086333457,3.93856854,103.24,103.22,13.93588377]
[1770086333854,3.93856854,103.23,103.21,13.93650793]
[1770086334088,3.93856854,103.22,103.2,13.93736362]
[1770086334263,3.93856854,103.21,103.19,14.00253114]
[1770086334464,13.19643576,103.23,103.2,4.2479154]
[1770086334659,3.93856854,103.23,103.2,13.93758154]
[1770086334868,3.93856854,103.22,103.2,13.93758154]
[1770086335885,3.93856854,103.22,103.2,13.93743297]
[1770086336061,3.93856854,103.23,103.2,13.93743297]
[1770086337269,3.93856854,103.24,103.21,4.2479154]
[1770086338283,3.93856854,103.24,103.21,13.9363228]
[1770086339769,3.93856854,103.24,103.22,4.2479154]
[1770086340083,7.44783835,103.26,103.22,4.2479154]
[1770086340788,3.93856854,103.25,103.22,4.2479154]
[1770086341681,7.44783835,103.27,103.24,4.2479154]
[1770086341886,137.18937214,103.28,103.24,4.2479154]
[1770086341887,7.44783835,103.28,103.24,4.2479154]
[1770086342080,3.93856854,103.26,103.23,38.15278801]
[1770086342282,3.93856854,103.24,103.22,9.68768651]
[1770086342489,3.93856854,103.23,103.21,33.90920406]
[1770086342691,3.93856854,103.26,103.2,9.6890625]
[1770086342692,7.44783835,103.22,103.2,9.6890625]
[1770086343674,3.93856854,103.21,103.19,14.00244264]
[1770086344269,7.44783835,103.22,103.19,14.00244264]
[1770086345587,7.44783835,103.25,103.2,4.2479154]
[1770086345776,7.44783835,103.27,103.23,4.2479154]
[1770086345961,3.93856854,103.27,103.23,4.2479154]
[1770086346980,3.93856854,103.27,103.24,4.2479154]
[1770086347794,3.93856854,103.27,103.25,9.68523002]
[1770086348289,3.93856854,103.27,103.25,13.93314542]
[1770086348589,7.44783835,103.32,103.27,4.2479154]
[1770086348775,3.50926981,103.32,103.28,4.2479154]
[1770086348979,3.93856854,103.31,103.28,4.2479154]
[1770086350166,3.50926981,103.32,103.29,4.2479154]
[1770086350488,12.87224837,103.33,103.29,4.2479154]